[Event "*** Titled Tuesday Blitz"]
[Site "Chess.com"]
[Date "2021.03.02"]
[Round "6"]
[White "frederiksvane"]
[Black "chigorin28"]
[Result "1/2-1/2"]
[WhiteElo "2680"]
[BlackElo "2507"]
[TimeControl "180+1"]
[EndTime "11:10:25 PST"]
[Termination "Game drawn by 50-move rule"]

1. e4 {[%clk 0:03:00.9]} 1... c5 {[%clk 0:02:57.2]} 2. Nf3 {[%clk 0:03:01.2]}
2... d6 {[%clk 0:02:57.3]} 3. Bb5+ {[%clk 0:03:01.5]} 3... Bd7 {[%clk
0:02:57.1]} 4. c4 {[%clk 0:03:01.8]} 4... Nc6 {[%clk 0:02:55.9]} 5. Nc3 {[%clk
0:03:01.2]} 5... g6 {[%clk 0:02:56]} 6. d4 {[%clk 0:03:01.7]} 6... cxd4 {[%clk
0:02:55]} 7. Nxd4 {[%clk 0:03:02.6]} 7... Bg7 {[%clk 0:02:50.6]} 8. Be3 {[%clk
0:03:02.6]} 8... Nf6 {[%clk 0:02:50.2]} 9. h3 {[%clk 0:03:02.4]} 9... O-O {[%clk
0:02:48.8]} 10. O-O {[%clk 0:03:02.2]} 10... a6 {[%clk 0:02:45.9]} 11. Bxc6
{[%clk 0:03:02.2]} 11... bxc6 {[%clk 0:02:44.2]} 12. c5 {[%clk 0:03:02.4]} 12...
Qc7 {[%clk 0:02:42.2]} 13. Rc1 {[%clk 0:02:47.5]} 13... Rab8 {[%clk 0:02:34.8]}
14. Nb3 {[%clk 0:02:39.9]} 14... d5 {[%clk 0:02:32.5]} 15. exd5 {[%clk
0:02:15.3]} 15... Nxd5 {[%clk 0:02:31.8]} 16. Nxd5 {[%clk 0:02:09.5]} 16... cxd5
{[%clk 0:02:32]} 17. Qxd5 {[%clk 0:02:01.1]} 17... Bb5 {[%clk 0:02:28.6]} 18.
Rfd1 {[%clk 0:01:54]} 18... Rfd8 {[%clk 0:02:23.3]} 19. Qf3 {[%clk 0:01:47.9]}
19... Bxb2 {[%clk 0:02:20.7]} 20. Bf4 {[%clk 0:01:26.4]} 20... Rxd1+ {[%clk
0:02:17.9]} 21. Rxd1 {[%clk 0:01:25.2]} 21... Be5 {[%clk 0:02:17.9]} 22. Bxe5
{[%clk 0:01:21]} 22... Qxe5 {[%clk 0:02:18.8]} 23. Rc1 {[%clk 0:01:01.8]} 23...
Rc8 {[%clk 0:02:13.4]} 24. c6 {[%clk 0:00:32.3]} 24... Qd6 {[%clk 0:02:04.9]}
25. Na5 {[%clk 0:00:30.3]} 25... h5 {[%clk 0:02:00]} 26. Qc3 {[%clk 0:00:26.4]}
26... Rc7 {[%clk 0:01:58.1]} 27. h4 {[%clk 0:00:17.4]} 27... e5 {[%clk
0:01:55.8]} 28. Qc5 {[%clk 0:00:14.4]} 28... Qxc5 {[%clk 0:01:44.8]} 29. Rxc5
{[%clk 0:00:15.3]} 29... f6 {[%clk 0:01:45.4]} 30. g3 {[%clk 0:00:15.7]} 30...
Kf7 {[%clk 0:01:39.7]} 31. f4 {[%clk 0:00:16]} 31... e4 {[%clk 0:01:35.3]} 32.
f5 {[%clk 0:00:13.7]} 32... e3 {[%clk 0:01:32.6]} 33. Kg2 {[%clk 0:00:10.5]}
33... g5 {[%clk 0:01:24.6]} 34. hxg5 {[%clk 0:00:07.4]} 34... fxg5 {[%clk
0:01:22.9]} 35. Kf3 {[%clk 0:00:02.8]} 35... e2 {[%clk 0:01:13.5]} 36. Rc1
{[%clk 0:00:03]} 36... Kf6 {[%clk 0:01:09.5]} 37. a4 {[%clk 0:00:03.2]} 37...
e1=Q {[%clk 0:00:52.4]} 38. Rxe1 {[%clk 0:00:02.6]} 38... Bxc6+ {[%clk
0:00:50.8]} 39. Nxc6 {[%clk 0:00:02.2]} 39... Rxc6 {[%clk 0:00:51.7]} 40. g4
{[%clk 0:00:01.9]} 40... hxg4+ {[%clk 0:00:49.6]} 41. Kxg4 {[%clk 0:00:02.8]}
41... Rc4+ {[%clk 0:00:49.3]} 42. Kf3 {[%clk 0:00:02.6]} 42... Kxf5 {[%clk
0:00:47.6]} 43. Ra1 {[%clk 0:00:02.9]} 43... Rc3+ {[%clk 0:00:44.4]} 44. Kg2
{[%clk 0:00:02.8]} 44... a5 {[%clk 0:00:41]} 45. Rd1 {[%clk 0:00:02.2]} 45...
Ke5 {[%clk 0:00:34.3]} 46. Rb1 {[%clk 0:00:02.2]} 46... Kf4 {[%clk 0:00:31.1]}
47. Rb5 {[%clk 0:00:01.9]} 47... g4 {[%clk 0:00:29]} 48. Rxa5 {[%clk 0:00:01.6]}
48... Rc2+ {[%clk 0:00:29.2]} 49. Kf1 {[%clk 0:00:01.6]} 49... Kg3 {[%clk
0:00:25.7]} 50. Rb5 {[%clk 0:00:01.6]} 50... Ra2 {[%clk 0:00:25.3]} 51. a5
{[%clk 0:00:01.6]} 51... Ra1+ {[%clk 0:00:22]} 52. Ke2 {[%clk 0:00:02.5]} 52...
Kg2 {[%clk 0:00:21.8]} 53. Rg5 {[%clk 0:00:02.7]} 53... g3 {[%clk 0:00:21.6]}
54. Kd3 {[%clk 0:00:03.2]} 54... Ra4 {[%clk 0:00:17.8]} 55. Kc3 {[%clk
0:00:03.1]} 55... Kf2 {[%clk 0:00:15.8]} 56. Kb3 {[%clk 0:00:03.6]} 56... Rf4
{[%clk 0:00:13.1]} 57. a6 {[%clk 0:00:01.9]} 57... g2 {[%clk 0:00:11.3]} 58. a7
{[%clk 0:00:01.8]} 58... Rf8 {[%clk 0:00:09.2]} 59. Kb4 {[%clk 0:00:01.7]} 59...
Ra8 {[%clk 0:00:07.1]} 60. Rf5+ {[%clk 0:00:02.1]} 60... Ke2 {[%clk 0:00:06.7]}
61. Rg5 {[%clk 0:00:02.4]} 61... Kf1 {[%clk 0:00:06.9]} 62. Rf5+ {[%clk
0:00:02.7]} 62... Kg1 {[%clk 0:00:07.3]} 63. Rf7 {[%clk 0:00:03]} 63... Kh2
{[%clk 0:00:06.9]} 64. Rh7+ {[%clk 0:00:03.4]} 64... Kg3 {[%clk 0:00:07.3]} 65.
Rg7+ {[%clk 0:00:03.9]} 65... Kf3 {[%clk 0:00:07.8]} 66. Kb5 {[%clk 0:00:03.9]}
66... Rxa7 {[%clk 0:00:07.4]} 67. Rxa7 {[%clk 0:00:03.9]} 67... g1=Q {[%clk
0:00:07.6]} 68. Rd7 {[%clk 0:00:03.6]} 68... Qb1+ {[%clk 0:00:07.3]} 69. Kc6
{[%clk 0:00:03.8]} 69... Ke4 {[%clk 0:00:07.6]} 70. Rd6 {[%clk 0:00:03.9]} 70...
Ke5 {[%clk 0:00:07.9]} 71. Rd5+ {[%clk 0:00:03.8]} 71... Ke6 {[%clk 0:00:08.4]}
72. Rd6+ {[%clk 0:00:04.2]} 72... Kf5 {[%clk 0:00:08.2]} 73. Rd5+ {[%clk
0:00:04.5]} 73... Ke4 {[%clk 0:00:08.6]} 74. Rd6 {[%clk 0:00:05]} 74... Qc2+
{[%clk 0:00:07.9]} 75. Kd7 {[%clk 0:00:02.9]} 75... Qc5 {[%clk 0:00:06.8]} 76.
Rc6 {[%clk 0:00:02.1]} 76... Qf5+ {[%clk 0:00:06]} 77. Kc7 {[%clk 0:00:01.7]}
77... Kd5 {[%clk 0:00:05.9]} 78. Rd6+ {[%clk 0:00:02]} 78... Kc5 {[%clk
0:00:06.3]} 79. Rc6+ {[%clk 0:00:02.2]} 79... Kb5 {[%clk 0:00:06.8]} 80. Rb6+
{[%clk 0:00:02.7]} 80... Ka5 {[%clk 0:00:06.9]} 81. Rc6 {[%clk 0:00:03]} 81...
Qd5 {[%clk 0:00:04.9]} 82. Rd6 {[%clk 0:00:03.1]} 82... Qc5+ {[%clk 0:00:03.2]}
83. Kd7 {[%clk 0:00:03.5]} 83... Qe5 {[%clk 0:00:01.8]} 84. Re6 {[%clk
0:00:03.5]} 84... Qg7+ {[%clk 0:00:02.2]} 85. Kd6 {[%clk 0:00:03.5]} 85... Kb5
{[%clk 0:00:01.7]} 86. Re5+ {[%clk 0:00:03.8]} 86... Kb6 {[%clk 0:00:02]} 87.
Ke6 {[%clk 0:00:03.7]} 87... Qc7 {[%clk 0:00:01.8]} 88. Rd5 {[%clk 0:00:03.6]}
88... Qc8+ {[%clk 0:00:02.1]} 89. Ke5 {[%clk 0:00:03.7]} 89... Qc1 {[%clk
0:00:03]} 90. Rd6+ {[%clk 0:00:03.7]} 90... Kc7 {[%clk 0:00:03.1]} 91. Rd5
{[%clk 0:00:03.9]} 91... Qe3+ {[%clk 0:00:03.4]} 92. Kf5 {[%clk 0:00:03.6]}
92... Kc6 {[%clk 0:00:04]} 93. Re5 {[%clk 0:00:03.7]} 93... Qf3+ {[%clk
0:00:04.3]} 94. Ke6 {[%clk 0:00:03.9]} 94... Qf4 {[%clk 0:00:04.6]} 95. Rf5
{[%clk 0:00:04]} 95... Qd6+ {[%clk 0:00:04.6]} 96. Kf7 {[%clk 0:00:04]} 96...
Kd7 {[%clk 0:00:05.1]} 97. Rf6 {[%clk 0:00:03.8]} 97... Qe5 {[%clk 0:00:05.2]}
98. Kg6 {[%clk 0:00:03.7]} 98... Ke7 {[%clk 0:00:05.1]} 99. Rf5 {[%clk
0:00:03.8]} 99... Qe6+ {[%clk 0:00:05.1]} 100. Kg5 {[%clk 0:00:03.8]} 100...
Qe3+ {[%clk 0:00:05.1]} 101. Rf4 {[%clk 0:00:03.8]} 101... Ke6 {[%clk 0:00:05]}
102. Kg4 {[%clk 0:00:03.6]} 102... Ke5 {[%clk 0:00:05.3]} 103. Rf3 {[%clk
0:00:03.1]} 103... Qe4+ {[%clk 0:00:04.5]} 104. Kg3 {[%clk 0:00:03.5]} 104...
Qe1+ {[%clk 0:00:04.1]} 105. Kg4 {[%clk 0:00:03.2]} 105... Qg1+ {[%clk
0:00:04.2]} 106. Rg3 {[%clk 0:00:03]} 106... Qf2 {[%clk 0:00:04.6]} 107. Rf3
{[%clk 0:00:03.3]} 107... Qe2 {[%clk 0:00:03.7]} 108. Kg3 {[%clk 0:00:03.2]}
108... Ke4 {[%clk 0:00:04.2]} 109. Rf4+ {[%clk 0:00:03.6]} 109... Ke3 {[%clk
0:00:04.5]} 110. Rf6 {[%clk 0:00:03.4]} 110... Qe1+ {[%clk 0:00:04.1]} 111. Kg4
{[%clk 0:00:03.8]} 111... Qg1+ {[%clk 0:00:04.3]} 112. Kf5 {[%clk 0:00:04.1]}
112... Kd4 {[%clk 0:00:02.2]} 113. Rd6+ {[%clk 0:00:03.9]} 113... Kc5 {[%clk
0:00:02.4]} 114. Re6 {[%clk 0:00:02.2]} 114... Qf2+ {[%clk 0:00:02.9]} 115. Ke5
{[%clk 0:00:02.4]} 115... Qg3+ {[%clk 0:00:03.1]} 116. Kf5 {[%clk 0:00:02.7]}
116... Kd5 {[%clk 0:00:03.2]} 117. Rf6 {[%clk 0:00:02.3]} 117... Qf3+ {[%clk
0:00:03.4]} 1/2-1/2

[Event "*** Titled Tuesday Blitz"]
[Site "Chess.com"]
[Date "2021.03.02"]
[Round "6"]
[White "WPWPWP-2015"]
[Black "BabyBoss31"]
[Result "0-1"]
[WhiteElo "2464"]
[BlackElo "2347"]
[TimeControl "180+1"]
[EndTime "11:10:27 PST"]
[Termination "BabyBoss31 won on time"]

1. e4 {[%clk 0:02:55.1]} 1... c6 {[%clk 0:02:58.6]} 2. d4 {[%clk 0:02:52.3]}
2... d5 {[%clk 0:02:58.6]} 3. e5 {[%clk 0:02:52.8]} 3... c5 {[%clk 0:02:57]} 4.
c3 {[%clk 0:02:50.7]} 4... Nc6 {[%clk 0:02:54.7]} 5. Bb5 {[%clk 0:02:48.8]} 5...
cxd4 {[%clk 0:02:39]} 6. cxd4 {[%clk 0:02:40.5]} 6... Bf5 {[%clk 0:02:39.4]} 7.
Nc3 {[%clk 0:02:39.2]} 7... e6 {[%clk 0:02:36.4]} 8. Be3 {[%clk 0:02:38]} 8...
Bb4 {[%clk 0:02:34.5]} 9. Ne2 {[%clk 0:02:37.3]} 9... Ne7 {[%clk 0:02:32.6]} 10.
a3 {[%clk 0:02:36.5]} 10... Ba5 {[%clk 0:02:25.3]} 11. O-O {[%clk 0:02:33.7]}
11... O-O {[%clk 0:02:24.1]} 12. h3 {[%clk 0:02:32.4]} 12... a6 {[%clk
0:02:20.8]} 13. Ba4 {[%clk 0:02:30.8]} 13... b5 {[%clk 0:02:20.6]} 14. Bb3
{[%clk 0:02:30.7]} 14... Rc8 {[%clk 0:02:19.3]} 15. g4 {[%clk 0:02:29.8]} 15...
Bg6 {[%clk 0:02:18.7]} 16. f4 {[%clk 0:02:29.8]} 16... Bxc3 {[%clk 0:02:05.9]}
17. bxc3 {[%clk 0:02:28.8]} 17... Na5 {[%clk 0:02:05.7]} 18. Ba2 {[%clk
0:02:11.4]} 18... Nc4 {[%clk 0:02:00.2]} 19. Bf2 {[%clk 0:02:10.5]} 19... Nc6
{[%clk 0:01:29.1]} 20. Ng3 {[%clk 0:01:57.4]} 20... f5 {[%clk 0:01:05.9]} 21.
gxf5 {[%clk 0:01:32.8]} 21... Bxf5 {[%clk 0:01:03.8]} 22. Nxf5 {[%clk
0:01:29.8]} 22... Rxf5 {[%clk 0:01:04.7]} 23. Qg4 {[%clk 0:01:27.2]} 23... Nd2
{[%clk 0:00:54]} 24. Bh4 {[%clk 0:01:22.5]} 24... Qf8 {[%clk 0:00:45.4]} 25. Rf2
{[%clk 0:01:20.8]} 25... Ne4 {[%clk 0:00:45.1]} 26. Rf3 {[%clk 0:01:19.2]} 26...
Ne7 {[%clk 0:00:33.9]} 27. Bb1 {[%clk 0:01:15.2]} 27... Ng6 {[%clk 0:00:33.3]}
28. Bg3 {[%clk 0:00:55.3]} 28... Kh8 {[%clk 0:00:22.9]} 29. Bd3 {[%clk
0:00:48.6]} 29... Nxg3 {[%clk 0:00:11]} 30. Rxg3 {[%clk 0:00:35.5]} 30... Rxf4
{[%clk 0:00:10.9]} 31. Qxe6 {[%clk 0:00:34.7]} 31... Re8 {[%clk 0:00:07]} 32.
Qxd5 {[%clk 0:00:33.5]} 32... Nh4 {[%clk 0:00:07]} 33. Be4 {[%clk 0:00:29.1]}
33... g6 {[%clk 0:00:04.5]} 34. e6 {[%clk 0:00:22.8]} 34... Qf6 {[%clk
0:00:04.2]} 35. Re1 {[%clk 0:00:05.4]} 35... Qxe6 {[%clk 0:00:03.9]} 36. Qxe6
{[%clk 0:00:05.2]} 36... Rxe6 {[%clk 0:00:04.8]} 37. Rge3 {[%clk 0:00:05]} 37...
Rexe4 {[%clk 0:00:01.9]} 38. Rxe4 {[%clk 0:00:05.1]} 38... Nf3+ {[%clk
0:00:02.1]} 39. Kh1 {[%clk 0:00:05]} 39... Rf5 {[%clk 0:00:01.8]} 40. Re8+
{[%clk 0:00:04.6]} 40... Kg7 {[%clk 0:00:02.7]} 41. R8e7+ {[%clk 0:00:05.5]}
41... Kh6 {[%clk 0:00:03.4]} 42. R1e2 {[%clk 0:00:05.7]} 42... Nh4 {[%clk
0:00:03.2]} 43. Kh2 {[%clk 0:00:04.7]} 43... Rf1 {[%clk 0:00:03.5]} 44. R7e4
{[%clk 0:00:03.9]} 44... Nf5 {[%clk 0:00:03.1]} 45. Kg2 {[%clk 0:00:03.9]} 45...
Rc1 {[%clk 0:00:03.2]} 46. d5 {[%clk 0:00:03.5]} 46... Rxc3 {[%clk 0:00:03.5]}
47. Rd2 {[%clk 0:00:04]} 47... Rc7 {[%clk 0:00:03.5]} 48. d6 {[%clk 0:00:04.3]}
48... Rd7 {[%clk 0:00:04.2]} 49. Re6 {[%clk 0:00:04.5]} 49... Kg7 {[%clk
0:00:04.8]} 50. Kf3 {[%clk 0:00:04.2]} 50... Kf7 {[%clk 0:00:05.3]} 51. Re4
{[%clk 0:00:03.2]} 51... Nxd6 {[%clk 0:00:05.2]} 52. Red4 {[%clk 0:00:03.2]}
52... Ke6 {[%clk 0:00:05.7]} 53. Re2+ {[%clk 0:00:03.1]} 53... Kf7 {[%clk
0:00:05.9]} 54. Red2 {[%clk 0:00:04]} 54... Ke6 {[%clk 0:00:06.1]} 55. Kf4
{[%clk 0:00:04.5]} 55... Rf7+ {[%clk 0:00:05.1]} 56. Kg4 {[%clk 0:00:04.9]}
56... Nc4 {[%clk 0:00:05.2]} 57. Re2+ {[%clk 0:00:04.8]} 57... Kf6 {[%clk
0:00:05.2]} 58. Rf4+ {[%clk 0:00:05]} 58... Kg7 {[%clk 0:00:05.7]} 59. Re6
{[%clk 0:00:04.7]} 59... Ra7 {[%clk 0:00:02.9]} 60. Rff6 {[%clk 0:00:03.2]}
60... Nxa3 {[%clk 0:00:03]} 61. Rxa6 {[%clk 0:00:03.3]} 61... Rxa6 {[%clk
0:00:03.9]} 62. Rxa6 {[%clk 0:00:03.1]} 62... Nc2 {[%clk 0:00:04.1]} 63. Rb6
{[%clk 0:00:02.9]} 63... b4 {[%clk 0:00:03.3]} 64. Kf4 {[%clk 0:00:03.3]} 64...
Kh6 {[%clk 0:00:03.1]} 65. Ke4 {[%clk 0:00:03.7]} 65... Kh5 {[%clk 0:00:03.5]}
66. Rb7 {[%clk 0:00:03.5]} 66... h6 {[%clk 0:00:03.5]} 67. Rh7 {[%clk
0:00:03.1]} 67... g5 {[%clk 0:00:03.7]} 68. Kd3 {[%clk 0:00:03.2]} 68... b3
{[%clk 0:00:03.6]} 69. Kc3 {[%clk 0:00:03.3]} 69... Ne3 {[%clk 0:00:03.7]} 70.
Kxb3 {[%clk 0:00:03.5]} 70... Nd1 {[%clk 0:00:04.3]} 71. Kc2 {[%clk 0:00:03.5]}
71... Nf2 {[%clk 0:00:04.8]} 72. Kd2 {[%clk 0:00:03.8]} 72... Nxh3 {[%clk
0:00:05]} 73. Ke3 {[%clk 0:00:04.2]} 73... Nf4 {[%clk 0:00:05.9]} 74. Kf3 {[%clk
0:00:04.5]} 74... Kg6 {[%clk 0:00:06.4]} 75. Rh8 {[%clk 0:00:04.7]} 75... Kh5
{[%clk 0:00:06.7]} 76. Ra8 {[%clk 0:00:04.4]} 76... Ng6 {[%clk 0:00:07]} 77. Ra6
{[%clk 0:00:04.4]} 77... Ne5+ {[%clk 0:00:06.8]} 78. Ke4 {[%clk 0:00:04.6]}
78... Ng4 {[%clk 0:00:07.3]} 79. Kf5 {[%clk 0:00:04.9]} 79... Ne3+ {[%clk
0:00:07.4]} 80. Ke4 {[%clk 0:00:05.3]} 80... Ng4 {[%clk 0:00:07.6]} 81. Rb6
{[%clk 0:00:05.6]} 81... Nf2+ {[%clk 0:00:07.8]} 82. Kf3 {[%clk 0:00:05.7]}
82... Ng4 {[%clk 0:00:08.3]} 83. Kg3 {[%clk 0:00:06.2]} 83... Ne5 {[%clk
0:00:08]} 84. Rd6 {[%clk 0:00:06.1]} 84... Ng6 {[%clk 0:00:07.8]} 85. Re6 {[%clk
0:00:05.9]} 85... Nf4 {[%clk 0:00:08.3]} 86. Rf6 {[%clk 0:00:06]} 86... Nd5
{[%clk 0:00:08.1]} 87. Rf5 {[%clk 0:00:05.7]} 87... Nf4 {[%clk 0:00:08]} 88. Re5
{[%clk 0:00:05.7]} 88... Nd3 {[%clk 0:00:08]} 89. Rd5 {[%clk 0:00:05.4]} 89...
Nf4 {[%clk 0:00:07.9]} 90. Rf5 {[%clk 0:00:05.4]} 90... Ne2+ {[%clk 0:00:08]}
91. Kf2 {[%clk 0:00:04.4]} 91... Nf4 {[%clk 0:00:07.7]} 92. Rf6 {[%clk
0:00:04.6]} 92... Ng6 {[%clk 0:00:06.8]} 93. Kf3 {[%clk 0:00:04.4]} 93... Nf4
{[%clk 0:00:07]} 94. Ra6 {[%clk 0:00:03.5]} 94... Nd5 {[%clk 0:00:06.7]} 95. Ke4
{[%clk 0:00:03.4]} 95... Nf4 {[%clk 0:00:06.6]} 96. Kf5 {[%clk 0:00:03.4]} 96...
Nd3 {[%clk 0:00:04.9]} 97. Ra3 {[%clk 0:00:03.4]} 97... Nf4 {[%clk 0:00:04.9]}
98. Ra1 {[%clk 0:00:03.4]} 98... Kh4 {[%clk 0:00:03.8]} 99. Rh1+ {[%clk
0:00:03.3]} 99... Nh3 {[%clk 0:00:04.1]} 100. Rh2 {[%clk 0:00:03]} 100... g4
{[%clk 0:00:04.2]} 101. Rg2 {[%clk 0:00:02.8]} 101... g3 {[%clk 0:00:04.5]} 102.
Ke4 {[%clk 0:00:02.5]} 102... h5 {[%clk 0:00:04.9]} 103. Kf3 {[%clk 0:00:02.4]}
103... Ng5+ {[%clk 0:00:05.3]} 104. Kf4 {[%clk 0:00:02.8]} 104... Nh3+ {[%clk
0:00:03.8]} 105. Kf5 {[%clk 0:00:02.8]} 105... Nf2 {[%clk 0:00:03.2]} 106. Kf4
{[%clk 0:00:02]} 106... Nd3+ {[%clk 0:00:03.6]} 107. Kf3 {[%clk 0:00:02.1]}
107... Ne5+ {[%clk 0:00:03.1]} 108. Ke4 {[%clk 0:00:02]} 108... Ng4 {[%clk
0:00:03.1]} 109. Rg1 {[%clk 0:00:02]} 109... Kh3 {[%clk 0:00:02.8]} 110. Kf3
{[%clk 0:00:02.1]} 110... Nh2+ {[%clk 0:00:02.9]} 111. Kf4 {[%clk 0:00:01.7]}
111... h4 {[%clk 0:00:03.5]} 112. Ra1 {[%clk 0:00:01.6]} 112... g2 {[%clk
0:00:03.7]} 113. Ra3+ {[%clk 0:00:01.7]} 113... Nf3 {[%clk 0:00:04.2]} 114.
Rxf3+ {[%clk 0:00:01.5]} 114... Kh2 {[%clk 0:00:04.8]} 115. Rf2 {[%clk
0:00:01.6]} 115... h3 {[%clk 0:00:04.3]} 116. Kf3 {[%clk 0:00:01.5]} 116... Kh1
{[%clk 0:00:04.8]} 0-1

[Event "*** Titled Tuesday Blitz"]
[Site "Chess.com"]
[Date "2021.03.02"]
[Round "7"]
[White "Anaiy"]
[Black "fridaywins"]
[Result "0-1"]
[WhiteElo "2219"]
[BlackElo "2138"]
[TimeControl "180+1"]
[EndTime "11:13:09 PST"]
[Termination "fridaywins won by resignation"]

1. d4 {[%clk 0:03:00.9]} 1... Nf6 {[%clk 0:02:58.8]} 2. c4 {[%clk 0:03:00.9]}
2... g6 {[%clk 0:02:56.8]} 3. Nc3 {[%clk 0:03:01.2]} 3... Bg7 {[%clk 0:02:57.3]}
4. e4 {[%clk 0:03:01.4]} 4... O-O {[%clk 0:02:58]} 5. f3 {[%clk 0:03:01.8]} 5...
d6 {[%clk 0:02:57.5]} 6. Be3 {[%clk 0:03:02.2]} 6... e5 {[%clk 0:02:57.3]} 7. d5
{[%clk 0:03:01.1]} 7... Nh5 {[%clk 0:02:56]} 8. Bd3 {[%clk 0:02:59.7]} 8... f5
{[%clk 0:02:54.5]} 9. Nge2 {[%clk 0:02:58.8]} 9... f4 {[%clk 0:02:52.7]} 10. Bf2
{[%clk 0:02:59]} 10... g5 {[%clk 0:02:51.6]} 11. Qc2 {[%clk 0:02:59]} 11... g4
{[%clk 0:02:45.3]} 12. fxg4 {[%clk 0:02:57.1]} 12... Bxg4 {[%clk 0:02:44]} 13.
O-O-O {[%clk 0:02:57.5]} 13... c5 {[%clk 0:02:34]} 14. h3 {[%clk 0:02:54.9]}
14... Bd7 {[%clk 0:02:32.9]} 15. Ng1 {[%clk 0:02:49.4]} 15... Ng3 {[%clk
0:02:18.6]} 16. Nce2 {[%clk 0:02:42.4]} 16... Nxh1 {[%clk 0:02:17.2]} 17. Nf3
{[%clk 0:02:40.7]} 17... Nxf2 {[%clk 0:02:16.8]} 0-1

[Event "*** Titled Tuesday Blitz"]
[Site "Chess.com"]
[Date "2021.03.02"]
[Round "7"]
[White "Sven_Tica"]
[Black "Firouzja2003"]
[Result "0-1"]
[WhiteElo "2677"]
[BlackElo "3129"]
[TimeControl "180+1"]
[EndTime "11:13:35 PST"]
[Termination "Firouzja2003 won by resignation"]

1. d4 {[%clk 0:03:00.9]} 1... Nf6 {[%clk 0:02:55.2]} 2. Nf3 {[%clk 0:03:01.5]}
2... g6 {[%clk 0:02:56.1]} 3. Nbd2 {[%clk 0:03:00.9]} 3... d6 {[%clk 0:02:57]}
4. e4 {[%clk 0:03:01.1]} 4... Bg7 {[%clk 0:02:57.9]} 5. Bb5+ {[%clk 0:03:01.4]}
5... c6 {[%clk 0:02:57]} 6. Bd3 {[%clk 0:03:02.1]} 6... O-O {[%clk 0:02:57]} 7.
O-O {[%clk 0:03:02.8]} 7... Qc7 {[%clk 0:02:57.3]} 8. h3 {[%clk 0:03:02.6]} 8...
e5 {[%clk 0:02:57.4]} 9. dxe5 {[%clk 0:03:02.5]} 9... dxe5 {[%clk 0:02:58.3]}
10. Nc4 {[%clk 0:03:02]} 10... Nbd7 {[%clk 0:02:58.9]} 11. a4 {[%clk 0:03:01]}
11... Re8 {[%clk 0:02:59.4]} 12. Be3 {[%clk 0:02:58]} 12... Nh5 {[%clk
0:02:59.8]} 13. c3 {[%clk 0:02:55.3]} 13... Nf8 {[%clk 0:02:59.9]} 14. Bc5
{[%clk 0:02:42.4]} 14... Rd8 {[%clk 0:02:58.9]} 15. Qc2 {[%clk 0:02:36.3]} 15...
Ne6 {[%clk 0:02:56.5]} 16. Be3 {[%clk 0:02:34.2]} 16... Nef4 {[%clk 0:02:56.9]}
17. Rad1 {[%clk 0:02:30]} 17... Be6 {[%clk 0:02:55.5]} 18. Be2 {[%clk
0:02:22.2]} 18... b6 {[%clk 0:02:46]} 19. Rxd8+ {[%clk 0:02:18.3]} 19... Rxd8
{[%clk 0:02:46.9]} 20. Rd1 {[%clk 0:02:17.9]} 20... Nxe2+ {[%clk 0:02:44.6]} 21.
Qxe2 {[%clk 0:01:57.3]} 21... Rxd1+ {[%clk 0:02:44.4]} 0-1

[Event "*** Titled Tuesday Blitz"]
[Site "Chess.com"]
[Date "2021.03.02"]
[Round "7"]
[White "Nikolaj_6"]
[Black "Nayemhaque22"]
[Result "1-0"]
[WhiteElo "2674"]
[BlackElo "2303"]
[TimeControl "180+1"]
[EndTime "11:14:34 PST"]
[Termination "Nikolaj_6 won by resignation"]

1. e4 {[%clk 0:03:00.9]} 1... c6 {[%clk 0:03:00.9]} 2. d4 {[%clk 0:03:00]} 2...
d5 {[%clk 0:03:01.8]} 3. e5 {[%clk 0:02:59.2]} 3... Bf5 {[%clk 0:03:01.6]} 4. h4
{[%clk 0:02:58.1]} 4... h5 {[%clk 0:03:01.2]} 5. c4 {[%clk 0:02:57]} 5... e6
{[%clk 0:03:00.9]} 6. Nc3 {[%clk 0:02:57]} 6... Bb4 {[%clk 0:03:00.6]} 7. Ne2
{[%clk 0:02:53.5]} 7... Ne7 {[%clk 0:02:53.3]} 8. a3 {[%clk 0:02:53]} 8... Ba5
{[%clk 0:02:51]} 9. b4 {[%clk 0:02:50.6]} 9... Bc7 {[%clk 0:02:50.2]} 10. c5
{[%clk 0:02:48]} 10... a5 {[%clk 0:02:48.2]} 11. Bg5 {[%clk 0:02:38.2]} 11...
Nd7 {[%clk 0:02:44.7]} 12. Ng3 {[%clk 0:02:35.8]} 12... Bg6 {[%clk 0:02:43.7]}
13. b5 {[%clk 0:02:30.5]} 13... f6 {[%clk 0:02:40.4]} 14. exf6 {[%clk
0:02:23.3]} 14... gxf6 {[%clk 0:02:41.1]} 15. Be3 {[%clk 0:02:21.6]} 15... b6
{[%clk 0:02:38.8]} 16. cxb6 {[%clk 0:02:19.4]} 16... Bxb6 {[%clk 0:02:37.9]} 17.
bxc6 {[%clk 0:02:13.9]} 17... Nxc6 {[%clk 0:02:37]} 18. Bb5 {[%clk 0:02:12.1]}
18... Rc8 {[%clk 0:02:28.1]} 19. O-O {[%clk 0:02:11.1]} 19... Ne7 {[%clk
0:02:21.8]} 20. Na4 {[%clk 0:02:08.2]} 20... Bc7 {[%clk 0:02:19.6]} 21. Nc5
{[%clk 0:02:05.1]} 21... O-O {[%clk 0:02:09.2]} 22. Bxd7 {[%clk 0:01:55.1]}
22... Bxg3 {[%clk 0:02:08.1]} 23. Bxe6+ {[%clk 0:01:54.6]} 23... Kg7 {[%clk
0:02:07.6]} 1-0

[Event "*** Titled Tuesday Blitz"]
[Site "Chess.com"]
[Date "2021.03.02"]
[Round "7"]
[White "turayev_shahruh17"]
[Black "Darius321"]
[Result "1-0"]
[WhiteElo "2470"]
[BlackElo "2293"]
[TimeControl "180+1"]
[EndTime "11:15:05 PST"]
[Termination "turayev_shahruh17 won by resignation"]

1. e4 {[%clk 0:02:54.7]} 1... c5 {[%clk 0:02:59.2]} 2. Nc3 {[%clk 0:02:54.5]}
2... e6 {[%clk 0:02:58]} 3. g3 {[%clk 0:02:53.2]} 3... Nc6 {[%clk 0:02:58]} 4.
Bg2 {[%clk 0:02:52.8]} 4... g6 {[%clk 0:02:58.4]} 5. d3 {[%clk 0:02:53]} 5...
Bg7 {[%clk 0:02:58.7]} 6. f4 {[%clk 0:02:53.5]} 6... Nge7 {[%clk 0:02:58.8]} 7.
Nh3 {[%clk 0:02:53.9]} 7... Nd4 {[%clk 0:02:58.4]} 8. O-O {[%clk 0:02:53.3]}
8... O-O {[%clk 0:02:57.8]} 9. g4 {[%clk 0:02:50.8]} 9... f5 {[%clk 0:02:57.6]}
10. gxf5 {[%clk 0:02:50.1]} 10... gxf5 {[%clk 0:02:55.9]} 11. Qh5 {[%clk
0:02:46.3]} 11... Qe8 {[%clk 0:02:54.6]} 12. Qh4 {[%clk 0:02:43]} 12... Nxc2
{[%clk 0:02:49.3]} 13. Rb1 {[%clk 0:02:39]} 13... Nd4 {[%clk 0:02:35.7]} 14. Be3
{[%clk 0:02:34.1]} 14... Rb8 {[%clk 0:02:23.3]} 15. Kh1 {[%clk 0:02:25]} 15...
b5 {[%clk 0:02:22.4]} 16. Bxd4 {[%clk 0:02:09.9]} 16... cxd4 {[%clk 0:02:20.1]}
17. Ne2 {[%clk 0:02:09.5]} 17... fxe4 {[%clk 0:02:12.4]} 18. Bxe4 {[%clk
0:01:57.5]} 18... Bb7 {[%clk 0:02:11.5]} 19. Qxh7+ {[%clk 0:01:52.7]} 19... Kf7
{[%clk 0:02:11.7]} 20. Ng5+ {[%clk 0:01:47]} 20... Kf6 {[%clk 0:02:10.6]} 21.
Bxb7 {[%clk 0:01:43.6]} 21... Rxb7 {[%clk 0:01:52.5]} 22. Ne4+ {[%clk
0:01:42.9]} 22... Kf7 {[%clk 0:01:50.5]} 23. Nd6+ {[%clk 0:01:42.9]} 23... Kf6
{[%clk 0:01:49.6]} 24. Qh4+ {[%clk 0:01:38.6]} 1-0